Cogmind - Beta 10.2 @@@ ROGUE MODE // 2020.10.31 @ 11:28:51 // Halloween2020/ForbiddenLore Player: Shodan Result: Self-destructed Performance ------------- Evolutions (1) 500 Regions Visited (2) 400 Robots Destroyed (14) 70 Value Destroyed (428) 428 Prototype IDs (0) 0 Alien Tech Used (0) 0 Bonus (0) 0 TOTAL SCORE: 1398 Bonus ------- None Cogmind --------- Core Integrity 330/400 Matter 283/300 Energy 100/100 System Corruption 0% Temperature Cool (0) Movement Core (300) Ox5 Location -9/Materials Parts ------- > --- POWER (1) -------- (None) > --- PROPULSION (2) --- (None) > --- UTILITY (4) ------ Large Storage Unit > --- WEAPON (2) ------- (None) > --- INVENTORY (10) --- Light Ion Engine Light Treads Light Treads Light Armor Plating Light Assault Rifle Peak State ------------ > --- POWER ------------ Light Ion Engine > --- PROPULSION ------- Compact Wheel Compact Wheel > --- UTILITY ---------- Large Storage Unit Light Armor Plating Light Armor Plating > --- WEAPON ----------- Light Assault Rifle Grenade Launcher > --- INVENTORY -------- Light Ion Engine Light Treads Light Treads Light Armor Plating Light Assault Rifle Light Assault Rifle [Rating: 8] Favorites ----------- Power Light Ion Engine Engine Light Ion Engine Propulsion Compact Wheel Leg Aluminum Leg Wheel Compact Wheel Utility Light Armor Plating Storage Large Storage Unit Protection Light Armor Plating Weapon Light Assault Rifle Energy Gun Medium Laser Ballistic Gun Light Assault Rifle Launcher Grenade Launcher Build | -11 -10 -9 ------- Run | Scr Mat Mat Slots Evolved 2 | . . 2 Power . | . . . Propulsion . | . . . Utility 2 | . . 2 Weapon . | . . . Parts Attached 10 | . 6 4 Power . | . . . Engine . | . . . Core . | . . . Reactor . | . . . Propulsion 2 | . 2 . Treads . | . . . Leg . | . . . Wheel 2 | . 2 . Hover . | . . . Flight . | . . . Utility 3 | . 2 1 Device . | . . . Storage 1 | . 1 . Processor . | . . . Hackware . | . . . Protection 2 | . 1 1 Artifact . | . . . Weapon 5 | . 2 3 Energy Gun . | . . . Energy Cannon . | . . . Ballistic Gun 3 | . 1 2 Ballistic Cannon . | . . . Launcher 2 | . 1 1 Special Weapon . | . . . Impact Weapon . | . . . Slashing Weapon . | . . . Piercing Weapon . | . . . Special Melee Weapon . | . . . Unidentified Prototypes . | . . . Parts Lost 8 | . . 8 Power 1 | . . 1 Propulsion 2 | . . 2 Utility 2 | . . 2 Weapon 3 | . . 3 Highest Loss Streak 6 | . . 6 Average Slot Usage (%) 88 | . 95 76 Engine 12 | . 14 10 Wheel 24 | . 26 21 Storage 12 | . 14 11 Protection 10 | . 10 11 Energy Gun 2 | . 3 . Ballistic Gun 18 | . 20 15 Launcher 4 | . 3 6 Naked Turns . | . . . Heaviest Build 27 | 10 26 27 Greatest Support 32 | 20 32 32 Greatest Overweight (x) . | . . . Average Overweight (x) . | . . . Largest Inventory Capacity 10 | . 10 10 Average Capacity 9 | . 8 10 Most Carried 7 | . 7 7 Average Carried 6 | . 6 6 Final Capacity 10 | 6 10 10 Final Carried 7 | 6 7 5 Class Distribution -------------------- 100% | Mutant Dominant Class ---------------- Mutant | -10/Materials Mutant | -9/Materials Resources | -11 -10 -9 ----------- Run | Scr Mat Mat Matter Collected 364 | 200 117 47 Remotely . | . . . Salvage Created 412 | . 172 240 Parts 28 | . 14 14 Haulers Intercepted . | . . . Recyclers Shooed . | . . . Parts Field Recycled . | . . . Retrieved Matter . | . . . Parts Self-Destructed . | . . . Prevented . | . . . Kills | -11 -10 -9 ------- Run | Scr Mat Mat Combat Hostiles Destroyed 14 | . 7 7 Guns 5 | . 4 1 AOE 9 | . 3 6 Classes Destroyed 3 | . 2 1 Swarmer 3 | . 3 . Grunt 10 | . 4 6 Sentry 1 | . . 1 Best Kill Streak 6 | . 5 6 Combat Bots Only 6 | . 5 6 Max Kills in Single Turn 3 | . 3 3 Gunslinging . | . . . Exploded 3 | . 3 3 Melee . | . . . Uniques/NPCs Destroyed . | . . . Combat | -11 -10 -9 -------- Run | Scr Mat Mat Damage Taken 740 | . 201 539 Core 112 | . 42 70 Absorbed by Shields . | . . . Core Remaining (%) 91 | 100 83 . Volleys Fired 41 | . 24 17 Largest 2 | . 2 2 Hottest 50 | . 50 50 Shots Fired 82 | . 48 34 Gun 78 | . 47 31 Cannon . | . . . Launcher 4 | . 1 3 Special . | . . . Kinetic 78 | . 47 31 Thermal . | . . . Explosive 4 | . 1 3 Electromagnetic . | . . . Robot Hit Streak 11 | . 11 9 Robot Miss Streak 4 | . 4 2 Penetration Max . | . . . Secondary Targets . | . . . Shots Hit Robots 58 | . 32 26 Core Hits 35 | . 17 18 Critical Hits . | . . . Critical Kills . | . . . Critical Parts Destroyed . | . . . Melee Attacks . | . . . Impact . | . . . Slashing . | . . . Piercing . | . . . Sneak Attacks . | . . . Combat Hostiles . | . . . Follow-up Attacks . | . . . Damage Inflicted 935 | . 371 564 Guns 418 | . 244 174 Cannons . | . . . Explosions 517 | . 127 390 Melee . | . . . Ramming . | . . . Kinetic 418 | . 244 174 Thermal . | . . . Explosive 517 | . 127 390 Electromagnetic . | . . . Impact . | . . . Slashing . | . . . Piercing . | . . . Highest Corruption . | . . . Average Corruption . | . . . Corruption Purged . | . . . Overload Shots . | . . . Overflow Damage 31 | . . 31 Projectiles . | . . . Explosions 31 | . . 31 Melee . | . . . Knockbacks . | . . . Impact . | . . . Kinetic . | . . . Secondary . | . . . Self-Inflicted Damage 87 | . . 87 Shots 3 | . . 3 Rammed . | . . . Targets Rammed . | . . . Kicked . | . . . Crushed . | . . . Highest Temperature 35 | . 35 16 Average Temperature 11 | . 13 8 Received Heat Transfer 225 | . 93 132 Siege Activations . | . . . Robots Corrupted . | . . . Combat Hostiles . | . . . Parts Fried . | . . . Impact Corruptions . | . . . Robots Melted . | . . . Combat Hostiles . | . . . Parts Melted . | . . . Heat Transferred . | . . . Parts Sabotaged . | . . . Parts Stolen . | . . . Parts Stripped . | . . . Power Chain Reactions . | . . . Missiles Intercepted . | . . . Alert | -11 -10 -9 ------- Run | Scr Mat Mat Peak Influence 202 | . 172 202 Initial 72 | . . 72 Average 70 | . 58 90 Maximum Alert Level 1 | . . 1 Low Security (%) 99 | . 100 98 Level 1 . | . . 1 Level 2 . | . . . Level 3 . | . . . Level 4 . | . . . Level 5 . | . . . High Security . | . . . Max Security . | . . . Squads Dispatched 1 | . . 1 Investigation . | . . . Extermination . | . . . Reinforcement 1 | . . 1 Assault . | . . . Garrison . | . . . Intercept . | . . . Construction Impeded . | . . . Haulers Reinforced . | . . . Stealth | -11 -10 -9 --------- Run | Scr Mat Mat Distress Signals 2 | . . 2 Communications Jammed . | . . . Distress Signals . | . . . Times Spotted 19 | . 7 12 Peak Tracking Total 8 | . 3 8 Tactical Retreats . | . . . Traps | -11 -10 -9 ------- Run | Scr Mat Mat Traps Triggered . | . . . Indirectly . | . . . Trap Hack Attempts . | . . . Triggered . | . . . Disarmed . | . . . Reprogrammed . | . . . Reused . | . . . Traps Extracted . | . . . Installed . | . . . Triggered . | . . . Machines | -11 -10 -9 ---------- Run | Scr Mat Mat Machines Disabled . | . . . Max in Single Turn . | . . . Machines Sabotaged . | . . . Garrisons Compromised . | . . . Overloaded Fab Kills . | . . . Fab Network Shutdowns . | . . . Hacking | -11 -10 -9 --------- Run | Scr Mat Mat Machines Accessed 6 | . 6 . Terminals 5 | . 5 . Fabricators . | . . . Repair Stations . | . . . Recycling Units 1 | . 1 . Scanalyzers . | . . . Garrison Access . | . . . Total Hacks 13 | . 13 . Successful 5 | . 5 . Failed 8 | . 8 . Catastrophic 1 | . 1 . Database Lockouts . | . . . Manual 12 | . 12 . Terminals 12 | . 12 . Fabricators . | . . . Repair Stations . | . . . Recycling Units 1 | . 1 . Scanalyzers . | . . . Garrison Access . | . . . Terminal Hacks . | . . . Fabricator Hacks . | . . . Repair Station Hacks . | . . . Recycling Unit Hacks 1 | . 1 . Report Inventory 1 | . 1 . Scanalyzer . | . . . Garrison Access Hacks . | . . . Unauthorized Hacks 4 | . 4 . Terminals 4 | . 4 . Track 2 | . 2 . Botnet 2 | . 2 . Fabricators . | . . . Repair Stations . | . . . Recycling Units . | . . . Scanalyzers . | . . . Garrison Access . | . . . Data Cores Recovered . | . . . Used . | . . . Hacking Detections 5 | . 5 . Full Trace Events 1 | . 1 . Feedback Events . | . . . Feedback Blocked . | . . . Robot Schematics Acquired . | . . . Robots Built . | . . . Matter . | . . . Time . | . . . Total Robot Build Rating . | . . . Part Schematics Acquired . | . . . Parts Built . | . . . Matter . | . . . Time . | . . . Total Part Build Rating . | . . . Parts Repaired . | . . . Time . | . . . Parts Recycled . | . . . Recycled Matter . | . . . Retrieved Matter . | . . . Retrieved Components . | . . . Parts Scanalyzed . | . . . Part Schematics Acquired . | . . . Parts Damaged . | . . . Bothacking | -11 -10 -9 ------------ Run | Scr Mat Mat Used RIF Installer . | . . . Robots Hacked . | . . . Non-combat . | . . . Combat . | . . . Robot Hacks Applied . | . . . Relay Couplers Released . | . . . Robots Rewired . | . . . Allies Hacked . | . . . Hacks Repelled . | . . . Allies | -11 -10 -9 -------- Run | Scr Mat Mat Total Allies . | . . . Largest Group . | . . . Highest-Rated Group . | . . . Highest-Rated Ally . | . . . Total Orders . | . . . Ally Attacks . | . . . Total Damage . | . . . Kills . | . . . Allies Corrupted . | . . . Allies Melted . | . . . Intel | -11 -10 -9 ------- Run | Scr Mat Mat Robot Analysis Total . | . . . Derelict Logs Recovered . | . . . Drone Launches . | . . . Drone Recoveries . | . . . Exploration | -11 -10 -9 ------------- Run | Scr Mat Mat Turns Passed 422 | . 266 156 Spaces Moved 284 | 1 185 98 Core . | . . . Treads . | . . . Legs 14 | 1 13 . Wheels 270 | . 172 98 Hover . | . . . Flight . | . . . Fastest Speed 100 | 120 100 100 Average Speed 100 | 120 101 100 Slowest Speed 120 | 120 120 100 Overloaded Moves . | . . . Propulsion Burnouts . | . . . Robots Hopped . | . . . Cave-ins Triggered . | . . . Exploration Rate (%) 18 | 2 37 15 Regions Visited 2 Branch Regions . Pre-discovered Areas . | . . . Known Exits Taken . | . . . Unknown Exits Taken 2 | 1 1 . Scrap Searched . | . . . Spaces Dug . | . . . Terrain Destroyed 37 | . 10 27 Melee . | . . . Projectile . | . . . AOE 37 | . 10 27 Terrain Rammed . | . . . Walls Destroyed . | . . . Machines Disabled . | . . . Actions | -11 -10 -9 --------- Run | Scr Mat Mat Total 351 | . 224 127 Wait 10 | . 2 8 Move 282 | . 184 98 Hop . | . . . Pick Up 4 | . 4 . Fast Attach 1 | . 1 . Attach 2 | . . 2 Detach . | . . . Swap 7 | . 5 2 Drop 4 | . 4 . Fire 41 | . 24 17 Melee . | . . . Ram . | . . . Kick . | . . . Crush . | . . . Escape Stasis . | . . . Rewire . | . . . Trap . | . . . Miscellaneous . | . . . Route ------- -11/Scrapyard -10/Materials -9/Materials (discovered 1 exit: [*Min]) History --------- Turn | Location | Event 1 | -11/Scrapyard | Discovered new exit (range 0) 1 | -11/Scrapyard | Entered Materials 227 | -10/Materials | Discovered new exit (range 9) 267 | -10/Materials | Entered another Materials area 267 | -9/Materials | Evolved 2 slots: Utility x2 314 | -9/Materials | Build established: Mutant 326 | -9/Materials | Discovered new exit (range 16) 423 | -9/Materials | Self-destructed Last Messages --------------- 00415_ G-34 Mercenary destroyed. 00416_ U-05 Engineer builds a Door. 00417_ U-05 Engineer lays Concrete. 00418_ Lgt. Ion Engine destroyed. 00418_ Destroyed Lgt. Ion Engine. 00418_ Com. Wheel destroyed. 00418_ Lgt. Armor Plating destroyed. 00418_ U-05 Engineer lays Concrete. 00420_ G-34 Mercenary destroyed. 00420_ Lgt. Assault Rifle destroyed. 00420_ Destroyed Lgt. Assault Rifle. 00420_ Y-45 Defender destroyed. 00420_ G-34 Mercenary destroyed. 00421_ U-05 Engineer lays Concrete. 00421_ R-06 Scavenger collects Aluminum Leg. 00422_ U-05 Engineer lays Concrete. 00422_ R-06 Scavenger collects Heat Sink. 00423_ Grenade Launcher destroyed. 00423_ Com. Wheel destroyed. 00423_ U-05 Engineer lays Concrete. Map ----- +----------------------------------------------------+ | ?????????????????????????????????????????????????? | | ?????????????????????????????????????????????????? | | ?????????????????????????????????????????????????? | | ?????????????????????????????????????????????????? | | ?????????????????????????????????????????????????? | | ?????????????????????????????????????????????????? | | ?????????????????????????????????????????????????? | | ?????????????????????????????????????????????????? | | ?????????????????????????????????????????????????? | | ?????????????????????????????????????????????????? | | ?????????????????????????????????????????????????? | | ?????????????????????????????????????????????????? | | ????????????????????????????????????????########?? | | ????????????????????????????????????????? #?? | | ?????????????????????????????????????????? #?? | | ??????????????????????????????????????????? #?? | | ???????????????????????????#???????????????# +?? | | ???????????????????????????# ??????????????# #?? | | ???????????????????????????# ??????????????# #?? | | ???????????????????????????# ??????????????# ### | | ???????????????????????????# ??????????????# | | ???????????????????????????# ?????!#???????# | | ??????????????????????###### ### !!#???????# | | ?????????????????????## # !!######### ### | | ?????????????????????# g ]]## # #?? | | ?????????????????????# @l[ ]]## """ # #?? | | ?????????????????????# =l=% ###??# """ + ### | | ?????????????????????# !% * #????# """ # | | ?????????????????????## %=% ###### # | | ?????????????????????? % r u + # | | ?????????????????????## *u ################### | | ?????????????????# ???##ru r #?????????????????? | | ?????????????##### ####r## ##########????????? | | ????????? a # #????????? | | ????????? r + #????????? | | ????????? a # #????????? | | ?????????? #######+##+#### # """ #????????? | | ?????????????????? ?? ???# # """"" #????????? | | ?????????????????# ??"" ???# # """"" ?#????????? | | ?????????????????#??"Y" ???# # """"" #????????? | | ??????????????????? ????# + """ #????????? | | ??????????????????? ????# # #????????? | | ???????????????????? ????# ##########????????? | | ?????????????????????#??#" #????????????????? | | ????????????????????????#"" #????????????????? | | ????????????????????????#|| #????????????????? | | ????????????????????????#"" < #????????????????? | | ????????????????????????#|| #????????????????? | | ????????????????????????#"" #????????????????? | | ????????????????????????#" #????????????????? | +----------------------------------------------------+ Best States ------------- Heat Dissipation 28 Energy Generation 10 Energy Capacity 125 Matter Stores 300 Matter Capacity 300 Sight Range 16 Terrain Scan Density 10 Armor Coverage 300 Evasion (%) 40 Item Schematics ----------------- None Robot Schematics ------------------ None Fabricated ------------ Nothing Alien Tech Used ----------------- None Achievements -------------- None Challenges ------------ None Game ------ Seed PointReactionMallet Manual? 0 Play Time 00:08:34 Cumulative 95.6 hours Start 2020.10.31 @ 11:22:23 End 2020.10.31 @ 11:28:51 Sessions 1 Manual Loads 0 Difficulty Rogue Special Mode Halloween2020/ForbiddenLore Game No. 106 Rogue 106 Adventurer 0 Explorer 0 Win Type - Total 1 Types 1/0/0/0/0/0/0/0/0 Lore% 56 Gallery% 61 Achievement% 47 Wizard Run 0 Options --------- ASCII 0 Keyboard 0 Movement Numpad Keybinds 0 Fullscreen 1 Font 24/Smallcaps Map View 76x50 Tactical HUD 1 Map Filters NONE Filters NONE Steam 1 RUN: ff7443ce-41e5-4d88-8b8f-067776db617a